fUSD/lending_fUSD_20250305
["ID","MTS","AMOUNT","RATE_DAILY","PERIOD"]
[355429114,1741137035264,-151.0,0.00012098,2]
[355429115,1741137035274,-293.358012,0.00012098,2]
[355429116,1741137035283,-868.75,0.00012098,2]
[355429117,1741137035293,-500.0,0.00012098,2]
[355429118,1741137035301,-2641.1,0.00012098,2]
[355429119,1741137035310,-493.83120734,0.00012098,2]
[355429120,1741137035319,-500.0,0.00012098,2]
[355429121,1741137035328,-2317.05,0.00012098,2]
[355429122,1741137035337,-500.0,0.00012098,2]
[355429123,1741137035346,-500.0,0.00012098,2]
[355429124,1741137035355,-500.0,0.00012098,2]
[355429125,1741137035364,-500.0,0.00012098,2]
[355429126,1741137035374,-961.18,0.00012098,2]
[355429127,1741137035384,-500.0,0.00012098,2]
[355429128,1741137035393,-3035.06,0.00012098,2]
[355429129,1741137035402,-500.0,0.00012098,2]
[355429130,1741137035414,-511.68361908,0.00012098,2]
[355429131,1741137035423,-373.65999397,0.00012098,2]
[355429132,1741137035432,-1363.85,0.00012098,2]
[355429133,1741137035441,-4785.64,0.00012098,2]
[355429134,1741137035451,-500.0,0.00012098,2]
[355429135,1741137035460,-1123.22,0.00012098,2]
[355429136,1741137035469,-500.0,0.00012098,2]
[355429137,1741137035477,-500.0,0.00012098,2]
[355429138,1741137035488,-1146.26,0.00012098,2]
[355429139,1741137035498,-500.0,0.00012098,2]
[355429140,1741137035508,-524.94178157,0.00012098,2]
[355429141,1741137035518,-3916.74,0.00012098,2]
[355429142,1741137035527,-507.16777929,0.00012098,2]
[355429143,1741137035537,-500.0,0.00012098,2]
[355429144,1741137035547,-873.81,0.00012098,2]
[355429145,1741137035556,-500.0,0.00012098,2]
[355429146,1741137035566,-4061.23,0.00012098,2]
[355429147,1741137035575,-500.0,0.00012098,2]
[355429148,1741137035584,-10063.28,0.00012098,2]
[355429149,1741137035593,-500.0,0.00012098,2]
[355429150,1741137035603,-514.09075836,0.00012098,2]
[355429151,1741137035612,-525.42953809,0.00012098,2]
[355429152,1741137035621,-2357.03,0.00012098,2]
[355429153,1741137035630,-500.0,0.00012098,2]
[355429154,1741137035640,-500.0,0.00012098,2]
[355429155,1741137035650,-500.0,0.00012098,2]
[355429156,1741137035659,-500.0,0.00012098,2]
[355429157,1741137035669,-500.0,0.00012098,2]
[355429158,1741137035679,-500.0,0.00012098,2]
[355429159,1741137035688,-151.0,0.00012098,2]
[355429160,1741137035698,-157.903478,0.00012098,2]
[355429161,1741137035707,-512.70467225,0.00012098,2]
[355429162,1741137035716,-500.0,0.00012098,2]
[355429163,1741137035725,-2449.1,0.00012098,2]
[355429164,1741137035735,-500.0,0.00012098,2]
[355429165,1741137035744,-500.0,0.00012098,2]
[355429166,1741137035755,-500.0,0.00012098,2]
[355429167,1741137035764,-1553.64,0.00012098,2]
[355429168,1741137035773,-1157.65,0.00012098,2]
[355429169,1741137035783,-500.0,0.00012098,2]
[355429170,1741137035793,-8841.93871168,0.00012098,2]
[355429171,1741137035812,-614.72573488,0.00012098,2]
[355429172,1741137038500,-180.62497191,0.00012097,2]
[355429173,1741137038510,-500.0,0.00012097,2]
[355429174,1741137038519,-500.0,0.00012097,2]
[355429175,1741137038529,-335.2401575,0.00012097,2]
[355429176,1741137038539,-500.0,0.00012097,2]
[355429177,1741137038549,-500.0,0.00012097,2]
[355429178,1741137038559,-167.81823669,0.00012097,2]
[355429179,1741137038593,-332.18176331,0.00012097,2]
[355429180,1741137038603,-500.0,0.00012097,2]
[355429181,1741137038613,-249.32491049,0.00012097,2]
[355429182,1741137038623,-500.0,0.00012097,2]
[355429183,1741137038632,-472.06876317,0.00012097,2]
[355429184,1741137038645,-27.93123683,0.00012097,2]
[355429185,1741137038654,-500.0,0.00012097,2]
[355429186,1741137038664,-500.0,0.00012097,2]
[355429187,1741137038673,-1352.37494437,0.00012098,2]
[355429188,1741137039376,-2155.34060907,0.00012098,2]
[355429189,1741137039386,-2133.11,0.00012098,2]
[355429190,1741137039397,-500.0,0.00012098,2]
[355429191,1741137039408,-502.25310842,0.00012098,2]
[355429192,1741137039419,-4318.30415489,0.00012098,2]
[355429193,1741137039431,-2057.05378969,0.00012098,2]
[355429195,1741137040009,-1285.52938693,0.00012098,2]
[355429196,1741137040022,-566.12214868,0.00012098,2]
[355429197,1741137040033,-558.89350208,0.00012098,2]
[355429213,1741137043035,-500.0,0.00012095,2]
[355429214,1741137043045,-2127.8,0.00012096,2]
[355429215,1741137043056,-968.38,0.00012096,2]
[355429216,1741137043066,-1348.18932319,0.00012098,2]
[355429218,1741137044046,-358.42769454,0.00012098,2]
[355429219,1741137044056,-500.0,0.00012098,2]
[355429220,1741137044066,-509.15396479,0.00012098,2]
[355429221,1741137044076,-504.36565173,0.00012098,2]
[355429222,1741137044086,-500.0,0.00012098,2]
[355429223,1741137044096,-500.0,0.00012098,2]
[355429224,1741137044106,-1918.8,0.00012098,2]
[355429225,1741137044117,-4011.51,0.00012098,2]
[355429226,1741137044127,-500.0,0.00012098,2]
[355429227,1741137044136,-500.0,0.00012098,2]
[355429228,1741137044146,-500.0,0.00012098,2]
[355429229,1741137044156,-6779.11,0.00012098,2]
[355429230,1741137044166,-503.40709115,0.00012098,2]
[355429231,1741137044176,-2102.73,0.00012098,2]
[355429232,1741137044185,-500.0,0.00012098,2]
[355429233,1741137044196,-500.0,0.00012098,2]
[355429234,1741137044206,-1131.6,0.00012098,2]
[355429235,1741137044216,-500.0,0.00012098,2]
[355429236,1741137044226,-928.3,0.00012098,2]
[355429237,1741137044236,-873.61,0.00012098,2]
[355429238,1741137044246,-500.0,0.00012098,2]
[355429239,1741137044257,-4130.17,0.00012098,2]
[355429240,1741137044268,-500.0,0.00012098,2]
[355429241,1741137044278,-500.0,0.00012098,2]
[355429242,1741137044289,-500.0,0.00012098,2]
[355429243,1741137044299,-500.0,0.00012098,2]
[355429244,1741137044309,-3926.68,0.00012098,2]
[355429245,1741137044319,-500.0,0.00012098,2]
[355429246,1741137044328,-2539.69,0.00012098,2]
[355429247,1741137044339,-502.66073157,0.00012098,2]
[355429248,1741137044349,-503.40831466,0.00012098,2]
[355429249,1741137044359,-500.0,0.00012098,2]
[355429250,1741137044369,-500.0,0.00012098,2]
[355429251,1741137044379,-500.0,0.00012098,2]
[355429252,1741137044388,-500.0,0.00012098,2]
[355429253,1741137044399,-500.0,0.00012098,2]
[355429254,1741137044413,-500.0,0.00012098,2]
[355429255,1741137044423,-512.10295448,0.00012098,2]
[355429256,1741137044434,-823.26,0.00012098,2]
[355429257,1741137044444,-450.57480559,0.00012098,2]
[355429264,1741137048034,-500.0,0.00012199,7]
[355429265,1741137048113,-500.0,0.00012473,7]
[355429266,1741137055037,348.09,9.375e-05,2]
[355429267,1741137147858,-1000.0,0.00011196,2]
[355429268,1741137147879,-150.0,0.00011418,2]
[355429269,1741137147902,-348.09,0.00011639,2]
[355429270,1741137147923,-150.0,0.0001166,2]
[355429271,1741137147945,-150.0,0.00011794,2]
[355429272,1741137147968,-150.0,0.00011835,2]
[355429273,1741137147989,-150.0,0.00011836,2]
[355429274,1741137148012,-150.0,0.00011874,2]
[355429275,1741137148034,-22967.6529,0.00011997,2]
[355429276,1741137148056,-150.0,0.00012013,2]
[355429277,1741137148078,-150.0,0.00012028,2]
[355429278,1741137148100,-150.0,0.00012045,2]
[355429279,1741137148123,-150.0,0.00012071,2]
[355429280,1741137148144,-300.0,0.00012094,2]
[355429281,1741137148166,-1667.1,0.00012095,2]
[355429282,1741137148187,-518.5650154,0.00012095,2]
[355429283,1741137148512,-500.0,0.00012095,2]
[355429284,1741137148537,-500.0,0.00012095,2]
[355429285,1741137148559,-150.0,0.00012095,2]
[355429286,1741137148581,-500.0,0.00012095,2]
[355429287,1741137148602,-3799.76,0.00012095,2]
[355429288,1741137148624,-3154.6,0.00012095,2]
[355429289,1741137148645,-2772.24,0.00012095,2]
[355429290,1741137148666,-7079.71,0.00012095,2]
[355429291,1741137148687,-500.0,0.00012095,2]
[355429292,1741137148710,-500.0,0.00012096,2]
[355429293,1741137148731,-1045.48,0.00012096,2]
[355429294,1741137148753,-11852.34,0.00012096,2]
[355429295,1741137148776,-2567.46,0.00012096,2]
[355429296,1741137148798,-1361.96,0.00012096,2]
[355429297,1741137148820,-4345.32,0.00012096,2]
[355429298,1741137148843,-3229.59,0.00012096,2]
[355429299,1741137148864,-507.17,0.00012096,2]
[355429300,1741137148887,-1340.83,0.00012096,2]
[355429301,1741137148908,-868.98,0.00012096,2]
[355429302,1741137148930,-3578.45,0.00012096,2]
[355429303,1741137148953,-4176.39,0.00012096,2]
[355429304,1741137148975,-2002.96,0.00012096,2]
[355429305,1741137148996,-11116.46,0.00012096,2]
[355429306,1741137149018,-1318.14,0.00012096,2]
[355429307,1741137149040,-7837.65,0.00012096,2]
[355429308,1741137149062,-1992.42,0.00012096,2]
[355429309,1741137149084,-3444.11,0.00012096,2]
[355429310,1741137149105,-1153.64,0.00012096,2]
[355429311,1741137149128,-457.94129568,0.00012096,2]
[355429312,1741137149150,-1056.26,0.00012096,2]
[355429313,1741137149172,-2046.84,0.00012096,2]
[355429314,1741137149193,-872.26,0.00012096,2]
[355429315,1741137149216,-500.0,0.00012097,2]
[355429316,1741137149239,-400.0,0.00012097,2]
[355429317,1741137149261,-2934.47,0.00012097,2]
[355429318,1741137149282,-500.0,0.00012097,2]
[355429319,1741137149304,-2220.5,0.00012097,2]
[355429320,1741137149325,-4586.24,0.00012097,2]
[355429321,1741137149346,-500.0,0.00012097,2]
[355429322,1741137149367,-3892.01,0.00012097,2]
[355429323,1741137149388,-3753.55,0.00012097,2]
[355429324,1741137149415,-9643.98,0.00012097,2]
[355429325,1741137149435,-49.42519441,0.00012098,2]
[355429326,1741137149458,-500.0,0.00012098,2]
[355429327,1741137149478,-500.0,0.00012098,2]
[355429328,1741137149500,-500.0,0.00012098,2]
[355429329,1741137149521,-6082.04,0.00012098,2]
[355429330,1741137149543,-500.0,0.00012098,2]
[355429331,1741137149563,-1586.57,0.00012098,2]
[355429332,1741137149583,-500.0,0.00012098,2]
[355429333,1741137149604,-500.0,0.00012098,2]
[355429334,1741137149626,-500.0,0.00012098,2]
[355429335,1741137149647,-903.85,0.00012098,2]
[355429336,1741137149669,-2185.7,0.00012098,2]
[355429337,1741137149690,-506.75426954,0.00012098,2]
[355429338,1741137149712,-1825.49,0.00012098,2]
[355429339,1741137149734,-500.0,0.00012098,2]
[355429340,1741137149754,-500.0,0.00012098,2]
[355429341,1741137149775,-1351.54,0.00012098,2]
[355429342,1741137149795,-539.26707145,0.00012098,2]
[355429343,1741137149817,-500.0,0.00012098,2]
[355429344,1741137149839,-3260.39,0.00012098,2]
[355429345,1741137149859,-500.0,0.00012098,2]
[355429346,1741137149880,-500.0,0.00012098,2]
[355429347,1741137149901,-500.0,0.00012098,2]
[355429348,1741137149922,-500.0,0.00012098,2]
[355429349,1741137149944,-509.16568496,0.00012098,2]
[355429350,1741137149966,-985.61,0.00012098,2]
[355429351,1741137149987,-500.0,0.00012098,2]
[355429352,1741137150008,-500.0,0.00012098,2]
[355429353,1741137150029,-3120.95,0.00012098,2]
[355429354,1741137150050,-500.0,0.00012098,2]
[355429355,1741137150072,-4512.8,0.00012098,2]
[355429356,1741137150093,-500.0,0.00012098,2]
[355429357,1741137150114,-500.0,0.00012098,2]
[355429358,1741137150135,-3093.88,0.00012098,2]
[355429359,1741137150155,-316.74802256,0.00012098,2]
[355429360,1741137150176,-500.0,0.00012098,2]
[355429361,1741137150197,-500.0,0.00012098,2]
[355429362,1741137150218,-1575.64,0.00012098,2]
[355429363,1741137150239,-1398.85,0.00012098,2]
[355429364,1741137150259,-500.0,0.00012098,2]
[355429365,1741137150282,-979.85,0.00012098,2]
[355429366,1741137150304,-2924.09,0.00012098,2]
[355429367,1741137150325,-500.0,0.00012098,2]
[355429368,1741137150347,-500.0,0.00012098,2]
[355429369,1741137150368,-500.0,0.00012098,2]
[355429370,1741137150389,-1954.2,0.00012098,2]
[355429371,1741137150410,-500.0,0.00012098,2]
[355429372,1741137150431,-500.0,0.00012098,2]
[355429373,1741137150455,-4195.21,0.00012098,2]
[355429374,1741137150475,-500.0,0.00012098,2]
[355429375,1741137150496,-500.0,0.00012098,2]
[355429376,1741137150517,-500.0,0.00012098,2]
[355429377,1741137150542,-1302.64,0.00012098,2]
[355429378,1741137150564,-500.0,0.00012098,2]
[355429379,1741137150585,-500.0,0.00012098,2]
[355429380,1741137150608,-890.54,0.00012098,2]
[355429381,1741137150633,-3611.01,0.00012098,2]
[355429382,1741137150653,-524.51490697,0.00012098,2]
[355429383,1741137150674,-500.0,0.00012098,2]
[355429384,1741137150694,-1246.69,0.00012098,2]
[355429385,1741137150715,-500.0,0.00012098,2]
[355429386,1741137150736,-500.0,0.00012098,2]
[355429387,1741137150756,-500.13871361,0.00012098,2]
[355429388,1741137150776,-500.0,0.00012098,2]
[355429389,1741137150796,-850.27,0.00012098,2]
[355429390,1741137150817,-4024.55,0.00012098,2]
[355429391,1741137150837,-507.7357766,0.00012098,2]
[355429392,1741137150858,-507.00942374,0.00012098,2]
[355429393,1741137150879,-519.26,0.00012098,2]
[355429394,1741137150900,-3097.34,0.00012098,2]
[355429395,1741137150921,-3341.42,0.00012098,2]
[355429396,1741137150941,-502.50531931,0.00012098,2]
[355429397,1741137150962,-4110.94,0.00012098,2]
[355429398,1741137150982,-500.0,0.00012098,2]
[355429399,1741137151003,-474.41829327,0.00012098,2]
[355429400,1741137151024,-500.0,0.00012098,2]
[355429401,1741137151048,-1000.0,0.00012099,2]
[355429402,1741137151071,-500.0,0.00012099,2]
[355429403,1741137151093,-3016.9837,0.00012099,2]
[355429404,1741137151114,-17870.26744456,0.00012099,2]
[355429405,1741137151139,-1488.82695119,0.00012099,2]
[355429406,1741137151161,-4763.56817826,0.00012122,2]
[355429407,1741137151183,-4763.56817826,0.00012163,2]
[355429408,1741137151205,-72766.75,0.0001217,2]
[355429409,1741137151229,-150.0,0.00012182,2]
[355429410,1741137151251,-500.0,0.00012188,2]
[355429411,1741137151272,-500.0,0.00012188,2]
[355429412,1741137151293,-500.0,0.00012188,2]
[355429413,1741137151314,-500.0,0.00012188,2]
[355429414,1741137151334,-500.0,0.00012188,2]
[355429415,1741137151355,-500.0,0.00012188,2]
[355429416,1741137151380,-845.36,0.00012188,2]
[355429417,1741137151401,-500.0,0.00012188,2]
[355429418,1741137151422,-508.37950187,0.00012188,2]
[355429419,1741137151447,-552.17,0.00012188,2]
[355429420,1741137151467,-500.0,0.00012188,2]
[355429421,1741137151489,-500.0,0.00012188,2]
[355429422,1741137151511,-500.0,0.00012188,2]
[355429423,1741137151537,-500.0,0.00012188,2]
[355429424,1741137151558,-500.0,0.00012188,2]
[355429425,1741137151578,-500.0,0.00012188,2]
[355429426,1741137151600,-500.0,0.00012188,2]
[355429427,1741137151621,-500.0,0.00012188,2]
[355429428,1741137151642,-506.07752812,0.00012188,2]
[355429429,1741137151663,-513.21410245,0.00012188,2]
[355429430,1741137151683,-500.0,0.00012188,2]
[355429431,1741137151704,-1000.41,0.00012188,2]
[355429432,1741137151724,-500.0,0.00012188,2]
[355429433,1741137151745,-500.0,0.00012188,2]
[355429434,1741137151767,-500.0,0.00012188,2]
[355429435,1741137151788,-500.0,0.00012188,2]
[355429436,1741137151810,-500.0,0.00012188,2]
[355429437,1741137151830,-500.0,0.00012188,2]
[355429438,1741137151853,-500.0,0.00012188,2]
[355429439,1741137151874,-888.98,0.00012188,2]
[355429440,1741137151895,-500.0,0.00012188,2]
[355429441,1741137151915,-500.0,0.00012188,2]
[355429442,1741137151935,-500.0,0.00012188,2]
[355429443,1741137151956,-1082.06,0.00012188,2]
[355429444,1741137151978,-500.0,0.00012188,2]
[355429445,1741137152001,-500.0,0.00012188,2]
[355429446,1741137152023,-500.0,0.00012188,2]
[355429447,1741137152044,-500.0,0.00012188,2]
[355429448,1741137152068,-500.0,0.00012188,2]
[355429449,1741137152090,-500.0,0.00012188,2]
[355429450,1741137152110,-504.65360048,0.00012188,2]
[355429451,1741137152131,-500.0,0.00012188,2]
[355429452,1741137152152,-500.0,0.00012188,2]
[355429453,1741137152173,-671.57,0.00012188,2]
[355429454,1741137152194,-500.0,0.00012188,2]
[355429455,1741137152214,-500.0,0.00012188,2]
[355429456,1741137152236,-500.0,0.00012188,2]
[355429457,1741137152260,-500.0,0.00012188,2]
[355429458,1741137152281,-500.0,0.00012188,2]
[355429459,1741137152303,-500.0,0.00012188,2]
[355429460,1741137152324,-500.0,0.00012188,2]
[355429461,1741137152346,-500.0,0.00012188,2]
[355429462,1741137152544,-500.0,0.00012188,2]
[355429463,1741137152606,-500.0,0.00012188,2]
[355429464,1741137152627,-530.93278529,0.00012188,2]
[355429465,1741137152648,-500.0,0.00012188,2]
[355429466,1741137152669,-500.0,0.00012188,2]
[355429467,1741137152690,-500.0,0.00012188,2]
[355429468,1741137152711,-500.0,0.00012188,2]
[355429469,1741137152732,-500.0,0.00012188,2]
[355429470,1741137152753,-674.44,0.00012188,2]
[355429471,1741137152775,-500.0,0.00012188,2]
[355429472,1741137152796,-913.84,0.00012188,2]
[355429473,1741137152818,-500.0,0.00012188,2]
[355429474,1741137152839,-504.31276822,0.00012188,2]
[355429475,1741137152860,-520.8009709,0.00012188,2]
[355429476,1741137152881,-500.0,0.00012188,2]
[355429477,1741137152901,-500.0,0.00012188,2]
[355429478,1741137152922,-500.0,0.00012188,2]
[355429479,1741137152942,-624.98821628,0.00012188,2]
[355429480,1741137152963,-500.0,0.00012188,2]
[355429481,1741137152983,-500.0,0.00012188,2]
[355429482,1741137153004,-500.0,0.00012188,2]
[355429483,1741137153025,-526.90623543,0.00012188,2]
[355429484,1741137153046,-500.0,0.00012188,2]
[355429485,1741137153068,-500.0,0.00012188,2]
[355429486,1741137153091,-500.0,0.00012188,2]
[355429487,1741137153113,-500.0,0.00012188,2]
[355429488,1741137153134,-500.0,0.00012188,2]
[355429489,1741137153156,-500.0,0.00012188,2]
[355429490,1741137153177,-500.0,0.00012188,2]
[355429491,1741137153198,-500.0,0.00012188,2]
[355429492,1741137153221,-500.0,0.00012188,2]
[355429493,1741137153245,-500.0,0.00012188,2]
[355429494,1741137153267,-513.99962756,0.00012188,2]
[355429495,1741137153288,-500.0,0.00012188,2]
[355429496,1741137153310,-647.90010559,0.00012188,2]
[355429497,1741137153333,-500.0,0.00012188,2]
[355429498,1741137153356,-508.60126822,0.00012188,2]
[355429499,1741137153378,-500.0,0.00012188,2]
[355429500,1741137153400,-510.16725893,0.00012188,2]
[355429501,1741137153423,-511.7613707,0.00012188,2]
[355429502,1741137153447,-512.04041435,0.00012188,2]
[355429503,1741137153478,-500.0,0.00012188,2]
[355429504,1741137153507,-635.08240865,0.00012188,2]
[355429505,1741137153531,-1098.32,0.00012188,2]
[355429506,1741137153557,-500.0,0.00012188,2]
[355429507,1741137153581,-177.39680362,0.00012188,2]
[355429508,1741137153606,-500.0,0.00012188,2]
[355429509,1741137153630,-500.0,0.00012188,2]
[355429510,1741137153654,-504.12348277,0.00012188,2]
[355429511,1741137153678,-500.0,0.00012188,2]
[355429512,1741137153703,-500.0,0.00012188,2]
[355429513,1741137153726,-500.0,0.00012188,2]
[355429514,1741137153750,-500.0,0.00012188,2]
[355429515,1741137153773,-500.0,0.00012188,2]
[355429516,1741137153796,-500.0,0.00012188,2]
[355429517,1741137153820,-500.0,0.00012188,2]
[355429518,1741137153844,-500.0,0.00012188,2]
[355429519,1741137153868,-1081.39,0.00012188,2]
[355429520,1741137153891,-500.0,0.00012188,2]
[355429521,1741137153915,-500.0,0.00012188,2]
[355429522,1741137153938,-500.0,0.00012188,2]
[355429523,1741137153962,-1213.13,0.00012188,2]
[355429524,1741137153985,-512.15109868,0.00012188,2]
[355429525,1741137154009,-1024.68,0.00012188,2]
[355429526,1741137154032,-500.0,0.00012188,2]
[355429527,1741137154054,-500.0,0.00012188,2]
[355429528,1741137154077,-267.20300761,0.00012188,2]
[355429529,1741137154100,-500.0,0.00012188,2]
[355429530,1741137154124,-500.0,0.00012188,2]
[355429531,1741137154150,-1088.09,0.00012188,2]
[355429532,1741137154174,-235.34107031,0.00012188,2]
[355429533,1741137154197,-500.0,0.00012188,2]
[355429534,1741137154219,-513.99815492,0.00012188,2]
[355429535,1741137154244,-500.0,0.00012188,2]
[355429536,1741137154267,-500.0,0.00012188,2]
[355429537,1741137154289,-1676.49,0.00012188,2]
[355429538,1741137154313,-500.0,0.00012188,2]
[355429539,1741137154337,-500.0,0.00012188,2]
[355429540,1741137154361,-1211.27,0.00012188,2]
[355429541,1741137154384,-500.0,0.00012188,2]
[355429542,1741137154406,-503.14938612,0.00012188,2]
[355429543,1741137154429,-1556.95,0.00012188,2]
[355429544,1741137154457,-500.0,0.00012188,2]
[355429545,1741137154479,-500.0,0.00012188,2]
[355429546,1741137154503,-500.0,0.00012188,2]
[355429547,1741137154525,-500.0,0.00012188,2]
[355429548,1741137154547,-500.0,0.00012188,2]
[355429549,1741137154568,-1058.08,0.00012188,2]
[355429550,1741137154589,-186.2309591,0.00012188,2]
[355429551,1741137154610,-5779.22,0.00012197,2]
[355429552,1741137154633,-500.0,0.00012197,2]
[355429553,1741137154656,-8908.45,0.00012197,2]
[355429554,1741137154678,-43149.82,0.00012197,2]
[355429555,1741137154700,-3616.06,0.00012197,2]
[355429556,1741137154723,-6770.36,0.00012197,2]
[355429557,1741137154745,-43564.69,0.00012197,2]
[355429558,1741137154766,-1473.31,0.00012197,2]
[355429559,1741137154788,-5496.26,0.00012197,2]
[355429560,1741137154808,-1792.12,0.00012197,2]
[355429561,1741137154829,-6916.56,0.00012197,2]
[355429562,1741137154851,-8492.93,0.00012197,2]
[355429563,1741137154875,-7001.45,0.00012197,2]
[355429564,1741137154896,-500.0,0.00012197,2]
[355429565,1741137154917,-3891.03,0.00012197,2]
[355429566,1741137154939,-1816.38,0.00012197,2]
[355429567,1741137154960,-9871.43,0.00012197,2]
[355429568,1741137154980,-24686.58,0.00012197,2]
[355429569,1741137155002,-1948.25,0.00012198,2]
[355429570,1741137155024,-500.0,0.00012198,2]
[355429571,1741137155048,-500.0,0.00012198,2]
[355429572,1741137155070,-1383.01,0.00012198,2]
[355429573,1741137155090,-1866.8,0.00012198,2]
[355429574,1741137155112,-1763.76,0.00012198,2]
[355429575,1741137155134,-1156.08,0.00012198,2]
[355429576,1741137155155,-2761.94,0.00012198,2]
[355429577,1741137155176,-500.0,0.00012198,2]
[355429578,1741137155196,-500.0,0.00012198,2]
[355429579,1741137155217,-500.0,0.00012198,2]
[355429580,1741137155237,-2113.91,0.00012198,2]
[355429581,1741137155259,-1730.76,0.00012198,2]
[355429582,1741137155280,-2364.3,0.00012198,2]
[355429583,1741137155301,-1748.23,0.00012198,2]
[355429584,1741137155323,-500.0,0.00012198,2]
[355429585,1741137155343,-2946.64,0.00012198,2]
[355429586,1741137155365,-1500.7,0.00012198,2]
[355429587,1741137155386,-500.0,0.00012198,2]
[355429588,1741137155407,-1639.03,0.00012198,2]
[355429589,1741137155429,-863.54,0.00012198,2]
[355429590,1741137155454,-540.04447841,0.00012198,2]
[355429591,1741137155476,-1164.61,0.00012198,2]
[355429592,1741137155497,-1045.21,0.00012198,2]
[355429593,1741137155518,-1739.25,0.00012198,2]
[355429594,1741137155543,-1268.3,0.00012198,2]
[355429595,1741137155564,-905.53,0.00012198,2]
[355429596,1741137155585,-500.0,0.00012198,2]
[355429597,1741137155606,-955.52,0.00012198,2]
[355429598,1741137155629,-500.0,0.00012198,2]
[355429599,1741137155650,-435.15666596,0.00012198,2]
[355429600,1741137155673,-1561.97,0.00012198,2]
[355429601,1741137155695,-630.4,0.00012198,2]
[355429602,1741137155716,-500.0,0.00012198,2]
[355429603,1741137155737,-2222.34,0.00012198,2]
[355429604,1741137155757,-1405.24,0.00012198,2]
[355429605,1741137155778,-500.0,0.00012198,2]
[355429606,1741137155799,-2415.61,0.00012198,2]
[355429607,1741137155820,-1851.53,0.00012198,2]
[355429608,1741137155840,-1662.76,0.00012198,2]
[355429609,1741137155861,-2009.61,0.00012198,2]
[355429610,1741137155881,-584.7,0.00012198,2]
[355429611,1741137155901,-1694.85,0.00012198,2]
[355429612,1741137155921,-1061.93,0.00012198,2]
[355429613,1741137155942,-978.47,0.00012198,2]
[355429614,1741137155962,-500.0,0.00012198,2]
[355429615,1741137155985,-1795.94,0.00012198,2]
[355429616,1741137156006,-987.45,0.00012198,2]
[355429617,1741137156028,-500.0,0.00012198,2]
[355429618,1741137156050,-1412.9,0.00012198,2]
[355429619,1741137156071,-1423.91,0.00012198,2]
[355429620,1741137156092,-938.41,0.00012198,2]
[355429621,1741137156113,-500.0,0.00012198,2]
[355429622,1741137156134,-500.0,0.00012198,2]
[355429623,1741137156154,-500.0,0.00012198,2]
[355429624,1741137156175,-1893.3,0.00012198,2]
[355429625,1741137156195,-500.0,0.00012198,2]
[355429626,1741137156217,-1076.74,0.00012198,2]
[355429627,1741137156239,-1527.7,0.00012198,2]
[355429628,1741137156260,-500.0,0.00012198,2]
[355429629,1741137156282,-500.0,0.00012198,2]
[355429630,1741137156303,-2041.69,0.00012198,2]
[355429631,1741137156324,-1408.56,0.00012198,2]
[355429632,1741137156346,-2690.05,0.00012198,2]
[355429633,1741137156367,-500.0,0.00012198,2]
[355429634,1741137156390,-3185.79,0.00012198,2]
[355429635,1741137156412,-500.0,0.00012198,2]
[355429636,1741137156434,-500.0,0.00012198,2]